bitfinex/quotes_ETHUSD_20260213
["timestamp","ask_amount","ask_price","bid_price","bid_amount"]
[1770998667329,1.22603109,2039.1,2038.3,0.001]
[1770998667922,0.48431465,2038.9,2038.3,0.001]
[1770998668117,1.042,2038.8,2038.3,0.001]
[1770998668330,1.22627164,2038.7,2038.3,0.001]
[1770998668519,2.26825531,2038.8,2038.3,0.001]
[1770998668846,1.042,2038.8,2038.3,0.001]
[1770998669020,1.22618948,2038.9,2038.3,0.001]
[1770998669346,2.26807752,2039.1,2038.3,0.49229749]
[1770998670049,2.26807752,2039.1,2038.3,0.001]
[1770998670619,2.26807752,2039.1,2038.3,0.49229749]
[1770998671239,1.042,2039.1,2038.3,0.49229749]
[1770998671434,2.2680319,2039.1,2038.3,0.49229749]
[1770998672428,2.2680319,2039.1,2038.4,1.22645211]
[1770998674027,1.042,2039.1,2038.4,1.22645211]
[1770998674327,5.9475107,2039.4,2038.6,1.22633179]
[1770998675053,5.9475107,2039.4,2038.5,1.70161898]
[1770998675219,5.9475107,2039.4,2038.3,0.001]
[1770998675420,1.51813099,2039.3,2038.3,0.001]
[1770998675625,12.19557285,2039.2,2038.5,0.001]
[1770998675852,1.05433386,2039.1,2038.5,0.001]
[1770998676152,2.09839563,2039.0,2038.5,0.001]
[1770998676347,1.045,2039.0,2038.5,0.001]
[1770998676579,2.27114145,2039.0,2038.5,0.001]
[1770998676854,0.002,2039.1,2038.5,0.001]
[1770998677065,1.2280327,2039.1,2038.5,0.001]
[1770998677275,0.002,2039.1,2038.5,0.001]
[1770998680149,1.0569591,2039.0,2038.5,0.001]
[1770998680353,1.53891478,2038.9,2038.3,0.001]
[1770998680679,1.53891478,2038.9,2037.4,0.001]
[1770998680680,0.48195568,2038.1,2037.4,0.001]
[1770998680865,1.32211836,2037.7,2037.1,5.0]
[1770998681067,1.76282449,2037.8,2036.3,1.22767648]
[1770998681068,10.69185314,2037.5,2036.3,1.22767648]
[1770998681275,2.37907746,2037.4,2036.1,0.46225912]
[1770998681462,2.37907746,2037.3,2036.2,0.46225912]
[1770998681670,2.36811836,2037.5,2036.4,0.46125912]
[1770998681959,1.046,2037.5,2036.4,0.46125912]
[1770998682363,1.32211836,2037.9,2036.6,0.46125912]
[1770998682678,1.22687343,2037.7,2036.7,1.22747581]
[1770998683983,1.22687343,2037.7,2036.6,0.46125912]
[1770998684282,1.05324831,2037.6,2036.7,0.001]
[1770998684453,2.27187343,2037.7,2036.4,0.912]
[1770998684759,1.0524375,2037.6,2036.5,0.001]
[1770998684962,1.22699386,2037.5,2036.5,1.22859636]
[1770998685149,1.22699386,2037.5,2036.6,0.001]
[1770998685353,1.22697528,2037.6,2036.6,0.001]
[1770998685552,1.22697528,2037.6,2036.7,0.001]
[1770998685791,1.32211836,2038.3,2036.9,0.46125912]
[1770998685985,1.22651581,2038.3,2037.2,2.4305]
[1770998686191,1.22633179,2038.6,2037.3,0.46125912]
[1770998686365,1.22621149,2038.8,2037.3,0.46125912]
[1770998686686,1.046,2038.9,2037.8,0.46125912]
[1770998686884,2.11207275,2039.1,2038.1,1.22663264]
[1770998688555,1.048,2039.3,2038.2,0.46125912]
[1770998688756,0.002,2039.3,2038.4,0.46125912]
[1770998688951,0.002,2039.3,2038.6,1.22633179]
[1770998689361,0.002,2039.3,2038.6,1.68759091]
[1770998689763,0.002,2039.3,2038.7,0.001]
[1770998689964,1.22752879,2040.0,2038.7,0.46225912]
[1770998690197,1.22752879,2040.0,2038.8,0.46225912]
[1770998690397,1.22752879,2040.0,2038.8,0.46125912]
[1770998691102,0.002,2040.0,2038.9,1.68841047]
[1770998691270,0.002,2040.0,2039.1,0.46125912]
[1770998691465,0.002,2040.0,2039.2,0.001]
[1770998692397,0.002,2040.0,2039.3,0.001]
[1770998692719,0.002,2040.0,2039.4,0.001]
[1770998692881,0.002,2040.0,2039.4,0.46125912]
[1770998693077,0.002,2040.0,2039.5,1.22579063]
[1770998693486,0.002,2040.0,2039.6,0.913]
[1770998693683,0.002,2040.0,2039.6,0.001]
[1770998693879,0.002,2040.0,2039.4,1.22581044]
[1770998694109,0.002,2040.0,2039.5,0.001]
[1770998694515,0.002,2040.0,2039.6,0.001]
[1770998694809,0.002,2040.0,2039.5,0.001]
[1770998695194,0.002,2040.0,2039.6,0.001]
[1770998695396,0.002,2040.0,2039.5,0.001]
[1770998696086,0.002,2040.0,2039.6,0.001]
[1770998697985,0.002,2040.5,2039.7,0.46125912]
[1770998698394,0.002,2040.5,2039.8,0.001]
[1770998698598,0.002,2040.5,2039.9,0.914]
[1770998698835,0.002,2040.5,2039.9,0.915]
[1770998699387,0.002,2040.5,2040.0,0.46225912]
[1770998699889,0.002,2040.5,2040.1,1.22543012]
[1770998700289,0.002,2040.5,2040.2,0.001]
[1770998700522,0.002,2040.5,2040.3,0.914]
[1770998700840,0.002,2040.5,2040.3,0.001]
[1770998701133,0.002,2040.5,2040.2,0.914]
[1770998701341,0.002,2040.7,2040.2,0.915]
[1770998701616,0.002,2040.3,2040.2,0.914]
[1770998701782,0.002,2040.7,2040.3,0.001]
[1770998702120,0.002,2040.7,2040.2,0.916]
[1770998702318,0.002,2040.7,2040.2,0.001]
[1770998702508,0.002,2040.7,2040.2,0.916]
[1770998702707,0.002,2040.7,2040.3,0.001]
[1770998703291,0.002,2040.7,2040.0,4.90192663]
[1770998703511,0.002,2040.7,2040.0,0.001]
[1770998703844,0.002,2040.7,2040.1,0.001]
[1770998704023,0.002,2040.7,2039.9,1.22655027]
[1770998704334,0.002,2040.7,2040.1,17.90015656]
[1770998704519,0.002,2040.7,2040.1,0.48501756]
[1770998704712,0.002,2040.7,2040.2,1.36901756]
[1770998705023,0.002,2040.7,2040.3,0.916]
[1770998706226,0.002,2040.7,2040.4,1.22524995]
[1770998706411,0.002,2040.7,2040.4,1.22624995]
[1770998706607,0.002,2040.7,2040.5,0.001]
[1770998707640,0.002,2040.9,2040.5,0.48501756]
[1770998707797,0.002,2040.9,2040.6,0.001]
[1770998708004,0.002,2041.4,2040.7,0.918]
[1770998709113,0.002,2041.4,2040.8,0.001]
[1770998709531,0.002,2041.4,2040.7,0.918]
[1770998709736,0.002,2041.4,2040.7,0.001]
[1770998709904,0.002,2041.4,2040.4,4.90080679]
[1770998710111,0.002,2041.4,2040.5,2.1441899]
[1770998710435,0.002,2041.4,2040.5,1.2261899]
[1770998710936,0.002,2041.4,2040.6,0.918]
[1770998711843,0.002,2041.4,2040.7,0.001]
[1770998712018,0.002,2041.4,2040.7,0.919]
[1770998712335,0.002,2041.4,2040.8,0.001]
[1770998712545,0.002,2041.4,2040.4,0.917]
[1770998712733,0.49340214,2041.2,2040.0,2.14246463]
[1770998712919,0.002,2041.4,2040.1,0.48501756]
[1770998713120,0.002,2041.4,2040.1,0.48601756]
[1770998713440,4.89651019,2042.3,2040.6,0.48501756]
[1770998713639,4.89651019,2042.3,2041.0,0.48501756]
[1770998713936,0.49340214,2042.2,2041.1,0.917]
[1770998714235,0.002,2041.2,2041.1,2.14182974]
[1770998714412,1.22422995,2042.1,2041.2,0.001]
[1770998714615,1.22422995,2042.1,2040.9,4.89969328]
[1770998714616,0.49340214,2042.0,2040.8,2.14196865]
[1770998714940,2.25722995,2042.1,2040.8,0.48601756]
[1770998715435,0.002,2041.4,2040.8,0.001]
[1770998715803,0.002,2041.4,2040.9,0.917]
[1770998716203,0.002,2041.4,2041.0,0.001]
[1770998717555,0.002,2041.4,2040.9,2.1419065]
[1770998717763,0.002,2041.4,2041.0,0.001]
[1770998717916,1.22421504,2042.2,2041.0,0.48501756]
[1770998718107,0.002,2042.3,2041.2,0.48501756]
[1770998718313,0.002,2042.3,2041.3,0.918]
[1770998718554,0.002,2042.3,2041.4,1.22464975]
[1770998718747,1.32211836,2042.8,2041.5,0.48501756]
[1770998719039,4.89548147,2042.9,2041.5,0.48501756]
[1770998719208,1.04965664,2042.8,2041.5,0.48501756]
[1770998719410,4.89548147,2042.9,2041.5,0.48501756]
[1770998719644,4.89404394,2043.5,2042.1,0.48501756]
[1770998719851,4.89404394,2043.5,2042.3,0.48501756]
[1770998720233,4.89404394,2043.5,2042.2,0.918]
[1770998720234,1.0475703,2043.4,2042.2,0.918]
[1770998720432,5.38744608,2043.5,2042.2,0.918]
[1770998720643,5.38744608,2043.5,2042.3,1.22411007]
[1770998720853,4.89404394,2043.5,2042.3,1.22411007]
[1770998721157,0.25592526,2044.5,2043.1,0.48501756]
[1770998721353,1.47871845,2044.5,2043.5,0.48501756]
[1770998721714,1.47871845,2044.5,2043.1,0.919]
[1770998721915,1.04511985,2044.4,2043.1,0.919]
[1770998722112,25.871714,2044.4,2043.1,0.919]
[1770998722349,0.49340214,2044.4,2042.9,1.40301756]
[1770998722559,1.22279319,2044.5,2042.9,1.40301756]
[1770998722722,1.22279319,2044.5,2043.1,0.48501756]
[1770998723622,10.1177449,2044.3,2042.8,1.22376795]
[1770998723821,10.1177449,2044.3,2042.9,0.918]
[1770998723822,11.64414704,2044.3,2042.9,0.918]
[1770998724249,0.1024,2044.4,2042.9,0.918]
[1770998724457,1.22279319,2044.5,2043.3,0.48501756]
[1770998724634,1.22279319,2044.5,2043.2,0.18685624]
[1770998724635,1.22255367,2044.9,2043.6,1.70834893]
[1770998724955,1.22255367,2044.9,2043.7,1.40201756]
[1770998725251,1.61476263,2045.0,2043.9,0.48501756]
[1770998725756,1.3589494,2045.0,2043.8,0.917]
[1770998726123,1.3589494,2045.0,2043.7,0.917]
[1770998726944,1.3589494,2045.0,2043.7,2.1402707]
[1770998727340,1.3589494,2045.0,2043.7,2.62528826]
[1770998727540,0.002,2044.8,2043.8,0.48501756]
[1770998727745,0.13642,2045.0,2044.2,0.48501756]
[1770998727983,0.24275753,2045.2,2044.4,0.48501756]
[1770998728144,0.002,2045.0,2044.4,0.48501756]
[1770998728946,0.002,2045.0,2044.4,0.916]
[1770998729180,12.48381739,2046.9,2045.0,0.48501756]
[1770998729474,0.2555759,2046.4,2045.1,2.28301756]
[1770998729680,1.034,2046.6,2045.2,0.916]
[1770998729902,10.1177449,2046.4,2045.0,0.503]
[1770998730180,0.1024,2046.5,2045.1,0.48501756]
[1770998730343,0.1024,2046.5,2045.2,0.916]
[1770998730543,1.034,2046.7,2045.2,0.916]
[1770998730744,1.32393816,2046.6,2045.2,0.916]
[1770998730946,1.22153816,2046.6,2045.2,2.1383596]
[1770998731140,2.25553816,2046.6,2045.2,2.1383596]
[1770998731346,1.22153816,2046.6,2045.5,0.47871914]
[1770998731777,1.22153816,2046.6,2045.2,1.2223596]
[1770998731962,1.22153816,2046.6,2045.3,1.798]
[1770998732144,1.22153816,2046.6,2045.3,2.27671914]
[1770998732342,1.22153816,2046.6,2045.1,0.916]
[1770998732343,11.33928306,2046.6,2045.1,0.916]
[1770998732579,12.553314,2046.4,2045.1,0.916]
[1770998732753,1.22171724,2046.3,2045.1,0.916]
[1770998732947,11.1517449,2046.2,2045.1,0.916]
[1770998733144,1.034,2046.2,2045.1,0.916]
[1770998734089,1.034,2046.2,2044.5,0.47871914]
[1770998734410,1.22153816,2046.6,2044.5,0.47871914]
[1770998734411,1.76282449,2048.0,2046.0,0.47871914]
[1770998734716,0.49692806,2047.6,2046.2,1.47722186]
[1770998734942,0.49692806,2047.6,2046.2,0.25548198]
[1770998735078,0.49692806,2047.4,2046.2,0.25548198]
[1770998735283,1.035,2047.3,2046.2,0.25548198]
[1770998736511,1.035,2047.3,2046.2,1.47725884]
[1770998736929,1.22118014,2047.2,2046.2,0.25548198]
[1770998737091,1.22118014,2047.2,2046.2,1e-08]
[1770998737415,1.70082977,2047.2,2046.2,1e-08]
[1770998737825,12.98114163,2046.9,2045.1,1.22237433]
[1770998738114,7.79364963,2046.7,2045.1,1.22237433]
[1770998738319,0.47964963,2046.7,2045.1,1.22237433]
[1770998738689,0.47964963,2047.1,2045.3,17.47704548]
[1770998739017,2.25829946,2047.0,2045.4,1.22225481]
[1770998739198,2.25829946,2047.0,2045.5,0.881]
[1770998739400,2.25829946,2047.0,2045.5,0.50896148]
[1770998739401,1.0302628,2047.0,2045.5,0.50896148]
[1770998739610,0.25550428,2047.5,2046.6,2.2824]
[1770998739807,0.25550428,2047.5,2046.7,0.917]
[1770998740009,1.22084695,2047.8,2046.7,1.8]
[1770998740213,1.22080382,2047.9,2046.8,13.224065]
[1770998740410,1.22052433,2048.3,2046.8,12.515469]
[1770998740585,0.002,2047.0,2046.9,5.551252]
[1770998740789,4.88209734,2048.5,2047.0,1.22129946]
[1770998740990,0.002,2047.2,2046.9,1.22131255]
[1770998742494,0.002,2047.2,2046.4,5.07429051]
[1770998742495,0.002,2047.2,2046.5,1.22159784]
[1770998742716,0.002,2047.2,2046.4,1.22261487]
[1770998742917,1.22076273,2047.9,2046.7,3.687068]
[1770998743085,2.10161369,2048.2,2046.8,6.896232]
[1770998743290,0.881,2048.2,2046.9,16.69508748]
[1770998743493,1.77200307,2048.8,2047.4,0.50896148]
[1770998743494,1.47558232,2048.8,2047.4,0.50896148]
[1770998743693,1.47558232,2048.8,2047.6,2.4958]
[1770998743990,1.22022888,2048.8,2047.6,2.4958]
[1770998744195,2.10113564,2049.0,2047.7,15.964715]
[1770998744421,1.22013564,2049.0,2047.7,0.50896148]
[1770998744593,1.35648489,2049.1,2047.8,1.803]
[1770998744793,0.13642,2049.1,2047.9,11.126912]
[1770998745121,0.25525072,2049.2,2048.3,10.700106]
[1770998745321,0.25525072,2049.2,2048.5,2.672642]
[1770998745521,1.47524308,2049.2,2048.3,0.922]
[1770998745710,0.25525072,2049.2,2048.4,2.184034]
[1770998745912,1.47524348,2049.2,2048.4,2.184034]
[1770998746231,1.47524348,2049.2,2048.3,0.923]
[1770998746389,1.21999276,2049.2,2048.3,0.923]
[1770998746591,1.21963118,2049.8,2048.3,0.923]
[1770998746791,1.21963118,2049.8,2048.4,7.748757]
[1770998746992,1.21963118,2049.8,2048.6,8.462263]
[1770998747222,1.21963118,2049.8,2048.6,4.27021]
[1770998747523,1.21963118,2049.8,2048.5,2.14440517]
[1770998747701,1.21963118,2049.8,2048.5,0.924]
[1770998747902,0.47964963,2049.7,2048.3,0.925]
[1770998748297,1.21963118,2049.8,2048.4,3.328566]
[1770998748497,1.21963118,2049.8,2048.4,3.83752748]
[1770998748699,1.21963118,2049.8,2048.5,22.195212]
[1770998748897,4.87805079,2050.0,2048.6,1.2203456]
[1770998749115,4.87805079,2050.0,2048.7,21.537792]
[1770998749395,4.87805079,2050.0,2048.6,1.2203456]
[1770998749597,5.35770042,2050.0,2048.6,2.1463456]
[1770998751112,5.35770042,2050.0,2048.7,0.927]
[1770998751520,5.35770042,2050.0,2048.6,1.2203456]
[1770998752030,0.47964963,2049.9,2048.6,1.2203456]
[1770998752830,4.87805079,2050.0,2048.6,1.2203456]
[1770998753030,1.51964963,2049.9,2048.6,1.2203456]
[1770998753414,1.51964963,2049.9,2048.2,0.928]
[1770998753415,0.47964963,2049.6,2048.2,0.928]
[1770998753731,0.47964963,2049.6,2048.0,4.88257889]
[1770998753938,0.47964963,2049.6,2048.1,0.928]
[1770998754255,0.25511887,2050.7,2049.2,0.50896148]
[1770998754447,1.47424255,2050.7,2049.4,13.280862]
[1770998754615,0.25511887,2050.7,2049.4,13.280862]
[1770998754814,1.22107557,2050.8,2049.1,9.57418033]
[1770998754815,1.22105254,2050.8,2049.5,10.33316748]
[1770998755058,0.002,2050.8,2049.6,1.21975019]
[1770998755411,0.002,2050.8,2049.7,0.933]
[1770998755831,0.002,2050.8,2049.8,3.696779]
[1770998756141,0.002,2050.8,2049.9,0.933]
[1770998756346,0.002,2050.8,2049.6,1.21975019]
[1770998756641,0.47964963,2050.7,2049.3,0.933]
[1770998756840,0.882,2050.8,2049.2,2.15298828]
[1770998756841,0.47964963,2050.5,2049.2,2.15298828]
[1770998757218,1.21909591,2050.7,2049.2,2.15298828]
[1770998757419,1.21909591,2050.7,2049.3,3.993017]
[1770998757620,2.10104302,2050.8,2049.4,23.40629]
[1770998757815,2.10103832,2050.8,2049.5,5.429657]
[1770998758029,2.10103832,2050.8,2049.6,0.933]
[1770998758253,2.10103832,2050.8,2049.7,0.933]
[1770998758555,2.58068795,2050.8,2049.4,0.933]
[1770998758914,2.10105419,2050.8,2049.5,1.2198097]
[1770998759517,0.882,2050.8,2049.5,1.2198097]
[1770998759922,0.002,2050.8,2049.7,8.380271]
[1770998760446,0.002,2050.8,2049.8,1.811]
[1770998760615,0.002,2050.8,2049.9,16.690516]
[1770998760822,0.002,2050.8,2049.9,14.312859]
[1770998761023,0.002,2050.8,2050.0,1.21951219]
[1770998761222,4.87350065,2052.0,2050.2,0.50034394]
[1770998761551,0.50835404,2051.5,2050.1,0.932]
[1770998761740,5.38185469,2052.0,2050.2,7.018141]
[1770998761938,1.042,2051.7,2050.2,2.5134]
[1770998762143,4.87350065,2052.0,2050.3,0.50034394]
[1770998762325,4.87350065,2052.0,2050.4,10.727686]
[1770998762526,2.09724424,2052.2,2050.6,30.0]
[1770998762855,1.55035404,2052.1,2050.1,0.28925624]
[1770998763056,0.50835404,2051.9,2050.3,1.21933375]
[1770998763233,0.50835404,2051.7,2050.0,1.21951219]
[1770998763440,0.50835404,2051.5,2049.7,1.21969068]
[1770998763627,1.21832358,2052.0,2049.9,0.933]
[1770998763628,0.50835404,2051.3,2049.9,0.933]
[1770998764953,1.21879875,2051.2,2049.7,1.21969068]
[1770998765179,0.50835404,2051.1,2049.7,1.21969068]
[1770998765376,0.50835404,2050.7,2048.8,1.22018585]
[1770998765595,0.50835404,2050.5,2048.8,2.15218585]
[1770998765746,0.50835404,2050.5,2048.9,4.420448]
[1770998766147,0.50835404,2050.5,2048.8,1.22018585]
[1770998766377,0.50835404,2050.5,2048.9,2.82501]
[1770998766806,0.50835404,2050.5,2048.8,1.22118585]
[1770998766807,0.50835404,2050.3,2048.8,0.001]
[1770998767089,1.21939322,2050.2,2048.8,1.22121607]
[1770998767289,1.72774726,2050.2,2048.8,1.22121607]
[1770998767694,1.21939322,2050.2,2049.0,12.270568]
[1770998767864,1.21939322,2050.2,2048.9,2.507]
[1770998768191,1.21939322,2050.2,2048.9,0.932]
[1770998768390,1.72774726,2050.2,2048.8,1.22121607]
[1770998768778,1.72774726,2050.2,2048.9,0.932]
[1770998768980,1.72774726,2050.2,2049.0,1.22010736]
[1770998769188,4.87757291,2050.5,2049.0,1.22010736]
[1770998769189,1.21921482,2050.5,2049.0,1.22010736]
[1770998769666,4.87644594,2050.7,2049.2,26.310923]
[1770998769999,4.87644594,2050.7,2049.2,21.941196]
[1770998770575,2.25909591,2050.8,2049.2,22.44153994]
[1770998770576,1.04,2050.8,2049.2,22.44153994]
[1770998770862,1.04,2050.8,2049.0,10.87874393]
[1770998770863,2.2590544,2050.8,2049.4,21.804743]
[1770998771064,1.04,2050.8,2049.7,1.21969068]
[1770998771465,1.04,2050.8,2049.8,13.161622]
[1770998771677,2.25904339,2050.8,2049.7,1.21969068]
[1770998772195,4.87607152,2050.9,2049.8,10.47209]
[1770998772196,1.21900518,2050.9,2049.8,10.47209]
[1770998772381,2.09794738,2051.0,2049.8,5.21899]
[1770998772565,0.50835404,2050.9,2049.4,0.934]
[1770998772764,2.09794738,2051.0,2049.4,0.934]
[1770998772965,0.50835404,2050.9,2049.4,0.934]
[1770998773198,1.21903647,2050.8,2049.5,24.0004567]
[1770998773365,1.21903647,2050.8,2049.6,4.513895]
[1770998773571,1.21903647,2050.8,2049.5,1.2198097]
[1770998773771,1.21903647,2050.8,2049.6,0.934]
[1770998773966,1.21903647,2050.8,2049.5,1.2198097]
[1770998774175,0.50835404,2050.6,2049.2,1.21998828]
[1770998775198,0.50835404,2050.4,2049.0,0.935]
[1770998776398,0.50835404,2050.4,2048.9,11.482255]
[1770998777023,0.50835404,2050.2,2048.8,0.935]
[1770998777173,1.72786623,2050.0,2048.8,0.001]
[1770998777371,0.50835404,2049.9,2048.8,0.001]
[1770998777572,0.50835404,2049.5,2047.3,2.366629]
[1770998777772,0.50835404,2049.3,2047.5,21.05689994]
[1770998777998,1.037,2049.2,2047.7,23.499552]
[1770998778582,1.037,2049.2,2048.0,21.223053]
[1770998778796,1.54535404,2049.2,2047.5,0.50034394]
[1770998779105,1.22004782,2049.1,2047.7,1.22088196]
[1770998779312,1.72840186,2049.1,2047.7,1.22088196]
[1770998779494,0.50835404,2049.0,2047.7,1.22088196]
[1770998779702,0.50835404,2049.0,2047.7,2.15688196]
[1770998780404,0.50835404,2049.0,2047.7,2.15788196]
[1770998780604,1.22004782,2049.1,2047.8,15.781785]
[1770998780794,1.22004782,2049.1,2047.7,2.15788196]
[1770998781106,0.50835404,2048.9,2047.7,0.001]
[1770998781276,1.22022647,2048.8,2047.7,0.001]
[1770998782282,1.72858051,2048.8,2047.7,0.001]
[1770998783190,1.22004782,2049.1,2047.7,0.001]
[1770998783390,1.038,2048.7,2047.7,0.001]
[1770998784097,1.038,2048.7,2047.8,12.949446]
[1770998784287,1.038,2048.7,2047.8,12.508796]
[1770998784906,1.038,2048.7,2047.7,0.001]
[1770998785204,1.038,2048.7,2047.7,1.22188196]
[1770998785205,1.2203456,2048.6,2047.7,1.22188196]
[1770998785607,1.2203456,2048.6,2047.7,0.001]
[1770998785809,2.25832408,2048.7,2047.7,0.001]
[1770998786420,2.76667812,2048.7,2047.7,0.001]
[1770998786584,0.50835404,2048.6,2047.7,0.001]
[1770998787197,2.25540517,2048.5,2047.7,0.001]
[1770998787517,1.30640726,2049.2,2047.7,0.001]
[1770998787518,1.22016691,2048.9,2047.7,0.001]
[1770998787811,2.42235404,2048.8,2047.7,0.001]
[1770998789214,1.22028603,2048.7,2047.7,0.001]
[1770998789507,1.21986923,2049.4,2047.7,0.50134394]
[1770998789677,1.035,2049.3,2048.0,15.883994]
[1770998790104,1.035,2049.3,2048.0,2.854029]
[1770998790305,1.54335404,2049.3,2047.8,5.915628]
[1770998790506,0.50835404,2049.2,2047.7,0.001]
[1770998790945,1.914,2049.1,2047.7,0.001]
[1770998791144,1.035,2049.0,2047.8,13.871969]
[1770998791309,1.035,2049.0,2048.0,12.553107]
[1770998791507,1.21996293,2049.3,2048.0,12.553107]
[1770998791710,2.25396293,2049.3,2048.0,12.553107]
[1770998792539,0.879,2049.8,2048.2,29.254015]
[1770998792835,1.21927428,2050.4,2048.6,0.50972566]
[1770998793008,0.879,2050.2,2048.7,10.49012]
[1770998793510,1.2194527,2050.1,2048.9,19.677113]
[1770998793705,5.75669608,2050.2,2048.9,19.677113]
[1770998793706,2.0984384,2050.2,2048.9,19.677113]
[1770998794037,2.09840244,2050.2,2049.0,20.41003]
[1770998794337,0.48956141,2049.8,2048.0,1.22070312]
[1770998794534,3.110292,2049.5,2047.9,0.001]
[1770998794707,0.48956141,2049.3,2047.9,1.22175131]
[1770998794906,0.48956141,2049.3,2047.9,0.001]
[1770998795119,0.48956141,2049.0,2047.9,0.001]
[1770998795321,1.70984744,2048.7,2047.9,0.001]
[1770998795514,0.48956141,2048.5,2047.7,0.001]
[1770998796532,0.84062544,2050.5,2050.3,11.515917]
[1770998796710,0.48956141,2051.3,2050.5,10.50125516]
[1770998796912,0.50235923,2051.1,2050.5,5.96103738]
[1770998797144,1.29688259,2051.0,2050.5,4.66415479]
[1770998797443,5.75412981,2051.4,2050.9,4.66415479]
[1770998797444,2.09773422,2051.4,2050.9,4.66415479]
[1770998797687,1.21841102,2051.9,2051.1,4.66415479]
[1770998798152,1.21841102,2051.9,2050.9,4.66415479]
[1770998798153,0.50235923,2051.7,2050.9,4.66415479]
[1770998798311,0.50235923,2051.5,2050.7,4.66415479]
[1770998798512,1.923,2051.4,2050.7,4.66415479]
[1770998799305,1.923,2051.4,2050.8,4.66415479]
[1770998799505,3.14168661,2051.4,2050.8,4.66415479]
[1770998799742,3.14168661,2051.4,2050.3,4.87724062]
[1770998799743,1.923,2051.4,2050.9,4.66415479]
[1770998799947,1.923,2051.4,2051.0,4.66415479]
[1770998800146,1.923,2051.4,2051.1,4.66415479]
[1770998801214,0.879,2051.9,2051.4,2.74115479]
[1770998801424,1.042,2051.8,2051.4,2.74115479]
[1770998802329,1.042,2051.8,2051.6,2.74115479]
[1770998802533,0.879,2051.9,2051.7,2.74115479]
[1770998802963,0.879,2051.9,2051.8,2.74115479]
[1770998803268,1.042,2052.3,2051.8,2.74115479]
[1770998803562,0.50235923,2052.6,2051.8,2.74115479]
[1770998803777,1.041,2052.5,2051.8,2.74115479]
[1770998804949,10.40211323,2052.4,2051.5,1.33434062]
[1770998805135,0.50235923,2052.4,2051.5,1.33434062]
[1770998805335,1.041,2052.5,2051.5,1.33434062]
[1770998805691,1.21808614,2052.4,2051.1,1.21885817]
[1770998805887,2.25906986,2052.5,2051.7,1.334341]
[1770998806459,14.279366,2052.4,2051.5,1.334341]
[1770998806662,10.26481,2052.4,2051.5,1.334341]
[1770998806872,0.50235923,2052.4,2051.5,1.334341]
[1770998807547,1.21814549,2052.3,2051.5,1.334341]
[1770998807753,0.50235923,2052.1,2051.1,1.334341]
[1770998807957,6.501,2051.8,2051.0,1.334341]
[1770998808154,0.879,2051.7,2051.0,1.334341]
[1770998808780,0.879,2051.7,2051.5,1.334341]
[1770998808977,1.919,2051.7,2051.3,1.334341]
[1770998809541,3.13754877,2051.7,2051.3,1.334341]
[1770998809775,3.13750834,2051.7,2051.3,1.334341]
[1770998809974,3.1375357,2051.7,2051.3,1.334341]
[1770998810345,1.919,2051.7,2051.3,1.334341]
[1770998810557,1.82278575,2051.7,2051.5,0.334341]
[1770998810853,1.77101404,2051.7,2051.6,0.334341]
[1770998811035,1.039,2051.9,2051.3,1.21872796]
[1770998811464,2.25740692,2051.9,2051.0,4.87563538]
[1770998811674,2.25738722,2051.9,2051.0,4.87563538]
[1770998811863,1.039,2051.9,2051.0,4.87563538]
[1770998812041,1.039,2051.9,2051.0,5.39063863]
[1770998812441,1.039,2051.9,2051.1,0.51500325]
[1770998813190,2.25738931,2051.9,2051.1,0.51500325]
[1770998813481,1.039,2051.9,2050.8,4.87591131]
[1770998813675,1.039,2051.9,2050.8,5.39091456]
[1770998813876,1.039,2051.9,2050.9,4.258305]
[1770998814445,1.039,2051.9,2050.8,5.39091456]
[1770998814785,1.036,2052.7,2051.2,0.51500325]
[1770998814956,0.002,2052.5,2051.4,0.51500325]
[1770998815165,0.002,2052.5,2051.6,5.66080025]
[1770998815458,1.036,2052.7,2051.8,1.21844234]
[1770998815766,0.002,2052.6,2051.8,1.21844234]
[1770998815978,0.002,2052.6,2051.8,1.73344559]
[1770998816150,0.878,2053.0,2051.9,0.51500325]
[1770998816481,0.002,2052.8,2051.8,1.21844234]
[1770998816846,0.002,2052.7,2051.8,1.21844234]
[1770998817157,0.002,2052.9,2051.8,1.21844234]
[1770998817362,0.002,2052.9,2051.8,1.73344559]
[1770998817873,1.913,2052.8,2051.8,1.73344559]
[1770998818245,0.002,2052.7,2051.8,1.73344559]
[1770998818460,0.002,2052.7,2052.0,0.51500325]
[1770998818661,0.002,2052.6,2051.8,1.21844234]
[1770998818870,0.002,2052.6,2051.5,1.73357901]
[1770998819069,0.002,2052.6,2051.0,0.51500325]
[1770998819572,0.50235923,2052.4,2050.8,1.21903647]
[1770998819754,0.002,2052.3,2050.8,1.21903647]
[1770998819950,1.034,2052.2,2050.8,1.21903647]
[1770998820368,0.002,2052.1,2050.9,0.51500325]
[1770998820677,1.036,2052.0,2051.1,0.51500325]
[1770998820857,1.034,2052.0,2051.1,0.51500325]
[1770998821044,0.002,2051.9,2051.1,0.51500325]
[1770998821254,0.002,2051.9,2051.0,0.001]
[1770998821447,1.22038296,2051.9,2051.0,0.001]
[1770998821965,0.002,2051.8,2051.0,0.001]
[1770998822480,0.002,2051.7,2051.0,0.001]
[1770998822846,0.002,2051.6,2051.0,0.001]
[1770998823044,0.002,2051.8,2051.0,0.001]
[1770998823444,0.002,2051.7,2051.0,0.001]
[1770998823781,0.002,2051.9,2051.0,0.001]
[1770998825088,14.592851,2051.8,2051.0,0.001]
[1770998825256,11.373059,2051.8,2051.0,0.001]
[1770998825461,0.002,2051.7,2051.0,0.001]
[1770998825850,0.002,2051.6,2051.0,0.001]
[1770998826176,0.002,2051.6,2051.0,0.91456625]